Cogmind - Beta 13 @@@ ROGUE MODE // 2024.04.20 @ 23:45:34 Player: Cjreek Result: Destroyed by G-34 Mercenary with Small Laser Performance ------------- Evolutions (1) 500 Regions Visited (2) 400 Robots Destroyed (16) 80 Value Destroyed (409) 409 Prototype IDs (0) 0 Alien Tech Used (0) 0 Bonus (0) 0 TOTAL SCORE: 1389 Bonus ------- None Cogmind --------- Core Integrity 0/400 Matter 86/300 Energy 226/250 System Corruption 0% Temperature Cool (6) Movement Core (150) Ox2 Location -9/Materials Parts ------- > --- POWER (1) -------- (None) > --- PROPULSION (3) --- (None) > --- UTILITY (3) ------ Medium Battery > --- WEAPON (2) ------- Beam Rifle Assault Rifle > --- INVENTORY (5) ---- Aluminum Leg Medium Battery (150) Peak State ------------ > --- POWER ------------ Light Ion Engine > --- PROPULSION ------- Wheel Wheel > --- UTILITY ---------- Medium Battery Medium Battery > --- WEAPON ----------- Assault Rifle Light Assault Rifle > --- INVENTORY -------- (None) [Rating: 7] Favorites ----------- Power Light Ion Engine Engine Light Ion Engine Propulsion Wheel Wheel Wheel Utility Medium Battery Device Structural Scanner Storage Medium Battery Weapon Assault Rifle Energy Gun Beam Rifle Ballistic Gun Assault Rifle Launcher Grenade Launcher Build | -11 -10 -9 ------- Run | Yrd Mat Mat Slots Evolved 2 | . . 2 Power . | . . . Propulsion 1 | . . 1 Utility 1 | . . 1 Weapon . | . . . Parts Attached 14 | 5 3 6 Power 1 | 1 . . Engine 1 | 1 . . Core . | . . . Reactor . | . . . Propulsion 3 | 2 . 1 Treads . | . . . Leg . | . . . Wheel 3 | 2 . 1 Hover . | . . . Flight . | . . . Utility 3 | . 3 . Device 1 | . 1 . Storage 2 | . 2 . Processor . | . . . Hackware . | . . . Protection . | . . . Artifact . | . . . Weapon 7 | 2 . 5 Energy Gun 1 | . . 1 Energy Cannon . | . . . Ballistic Gun 4 | 2 . 2 Ballistic Cannon . | . . . Launcher 2 | . . 2 Special Weapon . | . . . Impact Weapon . | . . . Slashing Weapon . | . . . Piercing Weapon . | . . . Special Melee Weapon . | . . . Unidentified Prototypes . | . . . Parts Lost 9 | . . 9 Power 1 | . . 1 Propulsion 2 | . . 2 Utility 1 | . . 1 Weapon 5 | . . 5 Highest Loss Streak 4 | . . 4 To Critical Strikes . | . . . Average Slot Usage (%) 68 | . 93 55 Engine 8 | . 14 5 Wheel 15 | . 28 9 Device 7 | . 2 10 Storage 13 | . 19 11 Ballistic Gun 18 | . 28 13 Launcher 3 | . . 5 Naked Turns . | . . . Heaviest Build 10 | 6 10 9 Greatest Support 20 | 20 20 20 Greatest Overweight (x) 2 | . . 2 Average Overweight (x) . | . . . Largest Inventory Capacity 5 | 5 5 5 Average Capacity 5 | 5 5 5 Most Carried 4 | 1 2 4 Average Carried 1 | . . 2 Final Capacity 5 | 5 5 5 Final Carried 2 | . 2 2 Class Distribution -------------------- 100% | Mutant Dominant Class ---------------- Mutant | -10/Materials Mutant | -9/Materials Resources | -11 -10 -9 ----------- Run | Yrd Mat Mat Matter Collected 340 | 262 . 78 Remotely . | . . . Salvage Created 404 | 55 . 349 Parts 35 | 1 . 34 Haulers Intercepted . | . . . Recyclers Shooed . | . . . Parts Field Recycled . | . . . Retrieved Matter . | . . . Parts Self-Destructed . | . . . Prevented . | . . . Kills | -11 -10 -9 ------- Run | Yrd Mat Mat Combat Hostiles Destroyed 11 | 1 . 10 Guns 6 | 1 . 5 AOE 5 | . . 5 Classes Destroyed 6 | 2 . 4 Worker 1 | 1 . . Builder 2 | . . 2 Watcher 2 | . . 2 Swarmer 3 | . . 3 Grunt 4 | 1 . 3 Sentry 4 | . . 4 Best Kill Streak 13 | 1 . 13 Combat Bots Only 7 | 1 . 7 Max Kills in Single Turn 3 | 1 . 3 Gunslinging . | . . . Exploded 3 | . . 3 Melee . | . . . Uniques/NPCs Destroyed . | . . . Combat | -11 -10 -9 -------- Run | Yrd Mat Mat Hostile Shots Fired 105 | 2 . 103 Missed 29 | . . 29 Damage Taken 1082 | 22 . 1060 Core 404 | . . 404 Absorbed by Shields . | . . . Regen/Repaired (Parts) 12 | . . 12 Core Remaining (%) 100 | 100 100 . Volleys Fired 40 | 3 . 37 Largest 2 | 2 . 2 Hottest 76 | 40 . 76 Shots Fired 63 | 6 . 57 Gun 49 | 6 . 43 Cannon . | . . . Launcher 14 | . . 14 Special . | . . . Kinetic 48 | 6 . 42 Thermal 1 | . . 1 Explosive 14 | . . 14 Electromagnetic . | . . . Robot Hit Streak 22 | 2 . 22 Robot Miss Streak 2 | 2 . 2 Penetration Max . | . . . Secondary Targets 1 | . . 1 Max Gunslinging Chain 1 | . . 1 Shots Hit Robots 39 | 3 . 36 Core Hits 27 | 3 . 24 Critical Kills . | . . . Critical Parts Destroyed 1 | . . 1 Critical Strikes 1 | . . 1 Destroy 1 | . . 1 Melee Attacks . | . . . Impact . | . . . Slashing . | . . . Piercing . | . . . Sneak Attacks . | . . . Combat Hostiles . | . . . Follow-up Attacks . | . . . Damage Inflicted 822 | 33 . 789 Guns 429 | 33 . 396 Cannons . | . . . Explosions 392 | . . 392 Melee . | . . . Ramming 1 | . . 1 Kinetic 429 | 33 . 396 Thermal . | . . . Explosive 392 | . . 392 Electromagnetic . | . . . Impact . | . . . Slashing . | . . . Piercing . | . . . Highest Corruption . | . . . Average Corruption . | . . . Corruption Purged . | . . . Corruption Blocked . | . . . Overload Shots . | . . . Overflow Damage . | . . . Projectiles . | . . . Explosions . | . . . Melee . | . . . Knockbacks . | . . . Impact . | . . . Kinetic . | . . . Secondary . | . . . Self-Inflicted Damage 25 | . . 25 Shots 1 | . . 1 Rammed 1 | . . 1 Targets Rammed 1 | . . 1 Kicked . | . . . Crushed . | . . . Highest Temperature 13 | 6 . 13 Average Temperature 6 | 6 . 6 Received Heat Transfer 447 | 12 . 435 Siege Activations . | . . . Robots Corrupted . | . . . Combat Hostiles . | . . . Parts Fried . | . . . Impact Corruptions . | . . . Robots Melted . | . . . Combat Hostiles . | . . . Parts Melted . | . . . Heat Transferred . | . . . Parts Sabotaged . | . . . Parts Stolen . | . . . Parts Stripped . | . . . Power Chain Reactions . | . . . Alert | -11 -10 -9 ------- Run | Yrd Mat Mat Peak Influence 360 | 25 18 360 Initial 16 | . 16 7 Average 86 | 4 17 142 Maximum Alert Level 1 | . . 1 Low Security (%) 79 | 100 100 64 Level 1 20 | . . 35 Level 2 . | . . . Level 3 . | . . . Level 4 . | . . . Level 5 . | . . . High Security . | . . . Max Security . | . . . Squads Dispatched . | . . . Investigation . | . . . Extermination . | . . . Reinforcement . | . . . Assault . | . . . Garrison . | . . . Intercept . | . . . Searches Triggered . | . . . Construction Impeded . | . . . Haulers Reinforced . | . . . Active Scanning Responses . | . . . Cargo Convoy Interrupts . | . . . Stealth | -11 -10 -9 --------- Run | Yrd Mat Mat Distress Signals 4 | . 1 3 Communications Jammed . | . . . Distress Signals . | . . . Times Spotted 18 | 1 . 17 Peak Tracking Total 6 | 1 . 6 Tactical Retreats 1 | . . 1 Traps | -11 -10 -9 ------- Run | Yrd Mat Mat Traps Triggered . | . . . Indirectly . | . . . Trap Hack Attempts . | . . . Triggered . | . . . Disarmed . | . . . Reprogrammed . | . . . Reused . | . . . Traps Extracted . | . . . Installed . | . . . Triggered . | . . . Machines | -11 -10 -9 ---------- Run | Yrd Mat Mat Machines Disabled 2 | . . 2 Max in Single Turn 1 | . . 1 Machines Repaired . | . . . Machines Dismantled . | . . . Machines Sabotaged . | . . . Overloaded Fab Kills . | . . . Hacking | -11 -10 -9 --------- Run | Yrd Mat Mat Machines Accessed 2 | . 1 1 Terminals 1 | . 1 . Fabricators . | . . . Repair Stations 1 | . . 1 Recycling Units . | . . . Scanalyzers . | . . . Garrison Access . | . . . Total Hacks 3 | . 1 2 Successful 3 | . 1 2 Failed . | . . . Catastrophic . | . . . Database Lockouts . | . . . Manual . | . . . Terminals 1 | . 1 . Fabricators . | . . . Repair Stations 2 | . . 2 Recycling Units . | . . . Scanalyzers . | . . . Garrison Access . | . . . Terminal Hacks 1 | . 1 . Record 1 | . 1 . Fabricator Hacks . | . . . Repair Station Hacks 2 | . . 2 Scan Component 1 | . . 1 Repair 1 | . . 1 Recycling Unit Hacks . | . . . Scanalyzer . | . . . Garrison Access Hacks . | . . . Unauthorized Hacks . | . . . Terminals . | . . . Fabricators . | . . . Repair Stations . | . . . Recycling Units . | . . . Scanalyzers . | . . . Garrison Access . | . . . Data Cores Recovered . | . . . Used . | . . . Hacking Detections 1 | . . 1 Full Trace Events . | . . . Feedback Events . | . . . Feedback Blocked . | . . . Robot Schematics Acquired . | . . . Robots Built . | . . . Authchips . | . . . Time . | . . . Total Robot Build Rating . | . . . Part Schematics Acquired . | . . . Parts Built . | . . . Authchips . | . . . Time . | . . . Total Part Build Rating . | . . . Parts Repaired 1 | . . 1 Time 26 | . . 26 Parts Recycled . | . . . Recycled Matter . | . . . Retrieved Matter . | . . . Retrieved Components . | . . . Parts Scanalyzed . | . . . Part Schematics Acquired . | . . . Parts Damaged . | . . . Bothacking | -11 -10 -9 ------------ Run | Yrd Mat Mat Used RIF Installer . | . . . Robots Hacked . | . . . Non-combat . | . . . Combat . | . . . Robot Hacks Applied . | . . . Relay Couplers Released . | . . . Fabnet Peak Effective % . | . . . Robots Rewired . | . . . Allies Hacked . | . . . Hacks Repelled . | . . . Allies | -11 -10 -9 -------- Run | Yrd Mat Mat Total Allies . | . . . Largest Group . | . . . Highest-Rated Group . | . . . Highest-Rated Ally . | . . . Total Orders . | . . . Ally Attacks . | . . . Total Damage . | . . . Kills . | . . . Allies Corrupted . | . . . Allies Melted . | . . . Intel | -11 -10 -9 ------- Run | Yrd Mat Mat Robot Analysis Total . | . . . Derelict Logs Recovered . | . . . Drone Launches . | . . . Drone Recoveries . | . . . Exploration | -11 -10 -9 ------------- Run | Yrd Mat Mat Turns Passed 710 | 104 204 402 Spaces Moved 631 | 112 226 293 Core 174 | 42 . 132 Treads . | . . . Legs . | . . . Wheels 457 | 70 226 161 Hover . | . . . Flight . | . . . Fastest Speed 50 | 50 80 50 Average Speed 83 | 68 80 92 Slowest Speed 150 | 80 80 150 Overloaded Moves . | . . . Propulsion Burnouts . | . . . Robots Hopped . | . . . Cave-ins Triggered 1 | . . 1 Exploration Rate (%) 17 | 6 28 19 Regions Visited 2 Branch Regions . Pre-discovered Areas . | . . . Known Exits Taken . | . . . Unknown Exits Taken 2 | 1 1 . Scrap Searched . | . . . Spaces Dug . | . . . Terrain Destroyed 76 | . . 76 Melee . | . . . Projectile . | . . . AOE 76 | . . 76 Terrain Rammed . | . . . Walls Destroyed . | . . . Machines Disabled . | . . . Actions | -11 -10 -9 --------- Run | Yrd Mat Mat Total 747 | 131 247 369 Wait 56 | 10 17 29 Move 628 | 111 225 292 Hop . | . . . Pick Up 6 | 2 1 3 Fast Attach 9 | 3 3 3 Attach 5 | 2 . 3 Detach 1 | . 1 . Swap . | . . . Drop . | . . . Fire 40 | 3 . 37 Melee . | . . . Ram 1 | . . 1 Kick . | . . . Crush . | . . . Escape Stasis 1 | . . 1 Rewire . | . . . Trap . | . . . Miscellaneous . | . . . Route ------- -11/Scrapyard -10/Materials (discovered 2 exits: *Mat / [*Min]) -9/Materials History --------- Turn | Location | Event 2 | -11/Scrapyard | Met Revision 17 85 | -11/Scrapyard | Discovered new exit (range 8) 105 | -11/Scrapyard | Entered Materials 254 | -10/Materials | Discovered new exit (range 12) 305 | -10/Materials | Discovered new exit (range 4) 309 | -10/Materials | Entered another Materials area 309 | -9/Materials | Evolved 2 slots: Propulsion x1, Utility x1 314 | -9/Materials | Build established: Mutant 360 | -9/Materials | Repaired Wheel 537 | -9/Materials | Lost 4 parts (1p2n1w) 593 | -9/Materials | Destroyed 7 combat bots 648 | -9/Materials | Core integrity fell below 50% 661 | -9/Materials | Crushed by falling debris 689 | -9/Materials | Core integrity fell below 20% 711 | -9/Materials | Destroyed by G-34 Mercenary with Small Laser Last Messages --------------- consequences. The unstable cave ceiling collapses. Open spaces previously occupied by now-destroyed walls and earth have a slight glow to them. Consecutive moves through these unstable areas may cause a cave-in, but only if doing so for extended periods. Tunneling a short distance between rooms is safe unless the area was destabilized by an explosion. The unstable cave ceiling collapses. Crushed by falling debris. [Achievement: Unlikely Earthworm] R-06 Scavenger inserts Lgt. Assault Rifle into recycling unit. Acquired Assault Rifle. Structural Scanner destroyed. Y-45 Defender suffers critical hit (Destroy). Destroyed Lgt. Treads. Acquired Beam Rifle. [Achievement: First Step to Greatness] Map ----- +----------------------------------------------------+ | ??????????????????????????? | | ??????????????????????????? | | ??????????????????????????? | | ????????????????????????? | | ??????????????????????? * | | ??????????????????????? % | | ??????????????????????? ! | | ??????????????????????????? | | ??????????????????????????? | | ??????????????????????????? | | ??????????????????????????? | | ??????????????????????????? | | ??????????????????????????? | | ??????????????????????????? | | ??????????????????????????? | | ??????????????????????????? | | ??????????????????????????? | | ??????????????????????????? | | ??????????????????????????? | | ??????????????????????????? | | ?????#####????????????????? | | ########### ??????????????? | | ####### ### #####??# | | # ![ Y #####+####### | | # [[ ! # | | # @[ # T | | # g ##+####### | | # ""# # ###### | | # T"# # # | | # ""#### / | | # #### # | | ############## # | | ############## # | | ????????????## # | | ????????????## ###### | | ????????????## ###### | | ????????????## ##???# | | ????????????## ##???? | | ????????????###########???? | | ????????????###########???? | | | | | | | | | | | | | | | | | | | | | +----------------------------------------------------+ Best States ------------- Heat Dissipation 28 Energy Generation 10 Energy Capacity 425 Matter Stores 300 Matter Capacity 300 Sight Range 16 Terrain Scan Density 10 Evasion (%) 50 Item Schematics ----------------- None Robot Schematics ------------------ None Fabricated ------------ Nothing Alien Tech Used ----------------- None Achievements -------------- Crack Shot First Step to Greatness Part-time Mechanic Unlikely Earthworm Challenges ------------ None Game ------ Seed ScatterSpectralAutohacker Manual? 0 Play Time 00:36:27 Cumulative 0.5 hours Start 2024.04.20 @ 22:53:55 End 2024.04.20 @ 23:45:34 Sessions 1 Manual Loads 0 Difficulty Rogue Special Mode None Game No. 1 Rogue 1 Adventurer 0 Explorer 0 Win Type - Total 0 Types 0/0/0/0/0/0/0/0/0 Lore% 0 Gallery% 0 Achievement% 1 Wizard Run 0 Options --------- Layout 1 ASCII 0 Keyboard 0 Movement Arrows Keybinds 0 Fullscreen 2 Font 48/SmallcapsGlow++ Map View 50x35 Zoom Use 84% Tactical HUD 0 Map Filters NONE Filters NONE Steam 1 RUN: 05e05ffa-c8e5-4c08-a308-e71f90d77dbc